fUSD/lending_fUSD_20260520
["ID","MTS","AMOUNT","RATE_DAILY","PERIOD"]
[422672007,1779231040000,-525.7,0.00013698,2]
[422672008,1779231040000,-525.7,0.00013698,2]
[422672009,1779231040000,-525.7,0.00013698,2]
[422672013,1779231040000,-525.7,0.00013698,2]
[422672011,1779231040000,-525.7,0.00013698,2]
[422672012,1779231040000,-525.7,0.00013698,2]
[422672015,1779231040000,-525.7,0.00013698,2]
[422672014,1779231040000,-525.7,0.00013698,2]
[422672016,1779231040000,-525.7,0.00013698,2]
[422672019,1779231040000,-500.0,0.00013698,2]
[422672021,1779231040000,-500.0,0.00013698,2]
[422672022,1779231040000,-500.0,0.00013698,2]
[422672017,1779231040000,-525.7,0.00013698,2]
[422672018,1779231040000,-525.7,0.00013698,2]
[422672020,1779231040000,-500.0,0.00013698,2]
[422672023,1779231040000,-500.0,0.00013698,2]
[422672026,1779231040000,-500.0,0.00013698,2]
[422672027,1779231040000,-500.0,0.00013698,2]
[422672025,1779231040000,-500.0,0.00013698,2]
[422672028,1779231040000,-500.0,0.00013698,2]
[422672024,1779231040000,-508.45785621,0.00013698,2]
[422672029,1779231040000,-500.0,0.00013698,2]
[422671968,1779231040000,-5213.56,0.00013698,2]
[422672002,1779231040000,-525.7,0.00013698,2]
[422671997,1779231040000,-500.0,0.00013698,2]
[422672030,1779231040000,-500.0,0.00013698,2]
[422671996,1779231040000,-500.0,0.00013698,2]
[422671999,1779231040000,-309.02129379,0.00013698,2]
[422671969,1779231040000,-5213.56,0.00013698,2]
[422671970,1779231040000,-5213.56,0.00013698,2]
[422671971,1779231040000,-500.0,0.00013698,2]
[422671974,1779231040000,-500.0,0.00013698,2]
[422671972,1779231040000,-5213.56,0.00013698,2]
[422671975,1779231040000,-500.0,0.00013698,2]
[422671973,1779231040000,-500.0,0.00013698,2]
[422671976,1779231040000,-500.0,0.00013698,2]
[422671977,1779231040000,-500.0,0.00013698,2]
[422671978,1779231040000,-500.0,0.00013698,2]
[422671979,1779231040000,-500.0,0.00013698,2]
[422671981,1779231040000,-500.0,0.00013698,2]
[422671982,1779231040000,-500.0,0.00013698,2]
[422671980,1779231040000,-500.0,0.00013698,2]
[422671965,1779231040000,-5213.56,0.00013698,2]
[422671988,1779231040000,-500.0,0.00013698,2]
[422671983,1779231040000,-500.0,0.00013698,2]
[422671994,1779231040000,-500.0,0.00013698,2]
[422671992,1779231040000,-500.0,0.00013698,2]
[422671995,1779231040000,-500.0,0.00013698,2]
[422671991,1779231040000,-500.0,0.00013698,2]
[422671989,1779231040000,-500.0,0.00013698,2]
[422671993,1779231040000,-372.71342826,0.00013698,2]
[422671998,1779231040000,-500.0,0.00013698,2]
[422671985,1779231040000,-500.0,0.00013698,2]
[422671987,1779231040000,-375.48613759,0.00013698,2]
[422671984,1779231040000,-219.19886839,0.00013698,2]
[422671986,1779231040000,-442.23348192,0.00013698,2]
[422671990,1779231040000,-500.0,0.00013698,2]
[422672074,1779231041000,-500.0,0.00013698,2]
[422672076,1779231041000,-500.0,0.00013698,2]
[422672073,1779231041000,-500.0,0.00013698,2]
[422672072,1779231041000,-500.0,0.00013698,2]
[422672075,1779231041000,-500.0,0.00013698,2]
[422672066,1779231041000,-500.0,0.00013698,2]
[422672069,1779231041000,-500.0,0.00013698,2]
[422672067,1779231041000,-500.0,0.00013698,2]
[422672070,1779231041000,-500.0,0.00013698,2]
[422672068,1779231041000,-275.0,0.00013698,2]
[422672077,1779231041000,-500.0,0.00013698,2]
[422672065,1779231041000,-500.0,0.00013698,2]
[422672071,1779231041000,-500.0,0.00013698,2]
[422672078,1779231041000,-500.0,0.00013698,2]
[422672087,1779231041000,-490.0,0.00013698,2]
[422672079,1779231041000,-500.0,0.00013698,2]
[422672081,1779231041000,-500.0,0.00013698,2]
[422672082,1779231041000,-500.0,0.00013698,2]
[422672083,1779231041000,-500.0,0.00013698,2]
[422672088,1779231041000,-500.0,0.00013698,2]
[422672085,1779231041000,-500.0,0.00013698,2]
[422672084,1779231041000,-500.0,0.00013698,2]
[422672086,1779231041000,-182.00213245,0.00013698,2]
[422672089,1779231041000,-500.0,0.00013698,2]
[422672091,1779231041000,-500.0,0.00013698,2]
[422672094,1779231041000,-500.0,0.00013698,2]
[422672090,1779231041000,-500.0,0.00013698,2]
[422672064,1779231041000,-500.0,0.00013698,2]
[422672095,1779231041000,-500.0,0.00013698,2]
[422672080,1779231041000,-500.0,0.00013698,2]
[422672063,1779231041000,-500.0,0.00013698,2]
[422672047,1779231041000,-500.0,0.00013698,2]
[422672059,1779231041000,-500.0,0.00013698,2]
[422672093,1779231041000,-500.0,0.00013698,2]
[422672032,1779231041000,-500.0,0.00013698,2]
[422672034,1779231041000,-500.0,0.00013698,2]
[422672035,1779231041000,-508.68888162,0.00013698,2]
[422672031,1779231041000,-500.0,0.00013698,2]
[422672033,1779231041000,-500.0,0.00013698,2]
[422672036,1779231041000,-500.0,0.00013698,2]
[422672037,1779231041000,-500.0,0.00013698,2]
[422672039,1779231041000,-500.0,0.00013698,2]
[422672040,1779231041000,-500.0,0.00013698,2]
[422672043,1779231041000,-500.0,0.00013698,2]
[422672038,1779231041000,-500.0,0.00013698,2]
[422672041,1779231041000,-500.0,0.00013698,2]
[422672042,1779231041000,-500.0,0.00013698,2]
[422672044,1779231041000,-500.0,0.00013698,2]
[422672046,1779231041000,-500.0,0.00013698,2]
[422672045,1779231041000,-500.0,0.00013698,2]
[422672048,1779231041000,-500.0,0.00013698,2]
[422672049,1779231041000,-500.0,0.00013698,2]
[422672050,1779231041000,-492.66,0.00013698,2]
[422672052,1779231041000,-500.0,0.00013698,2]
[422672056,1779231041000,-500.0,0.00013698,2]
[422672051,1779231041000,-500.0,0.00013698,2]
[422672055,1779231041000,-500.0,0.00013698,2]
[422672053,1779231041000,-500.0,0.00013698,2]
[422672054,1779231041000,-500.0,0.00013698,2]
[422672057,1779231041000,-500.0,0.00013698,2]
[422672058,1779231041000,-500.0,0.00013698,2]
[422672061,1779231041000,-500.0,0.00013698,2]
[422672062,1779231041000,-500.0,0.00013698,2]
[422672092,1779231041000,-500.0,0.00013698,2]
[422672147,1779231041000,-150.0,0.00013776,2]
[422672098,1779231041000,-500.0,0.00013698,2]
[422672130,1779231041000,-500.0,0.00013698,2]
[422672134,1779231041000,-500.0,0.00013698,2]
[422672129,1779231041000,-500.0,0.00013698,2]
[422672132,1779231041000,-500.0,0.00013698,2]
[422672136,1779231041000,-200.0,0.00013699,2]
[422672138,1779231041000,-719.98,0.00013699,2]
[422672139,1779231041000,-163.26,0.000137,2]
[422672140,1779231041000,-3292.0,0.00013701,2]
[422672141,1779231041000,-150.0,0.00013718,2]
[422672137,1779231041000,-2500.0,0.00013699,2]
[422672142,1779231041000,-150.0,0.00013718,2]
[422672146,1779231041000,-150.0,0.00013769,2]
[422672145,1779231041000,-150.0,0.00013764,2]
[422672143,1779231041000,-150.0,0.00013741,2]
[422672161,1779231041000,-150.0,0.00013891,2]
[422672148,1779231041000,-150.0,0.00013787,2]
[422672149,1779231041000,-150.0,0.00013787,2]
[422672151,1779231041000,-150.0,0.0001381,2]
[422672152,1779231041000,-150.0,0.00013834,2]
[422672153,1779231041000,-150.0,0.00013834,2]
[422672154,1779231041000,-500.0,0.00013843,2]
[422672150,1779231041000,-1786.35,0.000138,2]
[422672155,1779231041000,-150.0,0.00013857,2]
[422672158,1779231041000,-150.0,0.00013862,2]
[422672159,1779231041000,-150.0,0.00013862,2]
[422672156,1779231041000,-150.0,0.00013862,2]
[422672160,1779231041000,-150.0,0.0001388,2]
[422672157,1779231041000,-150.0,0.00013862,2]
[422672096,1779231041000,-500.0,0.00013698,2]
[422672131,1779231041000,-507.15627863,0.00013698,2]
[422672135,1779231041000,-500.0,0.00013698,2]
[422672144,1779231041000,-150.0,0.0001376,2]
[422672128,1779231041000,-500.0,0.00013698,2]
[422672099,1779231041000,-500.0,0.00013698,2]
[422672133,1779231041000,-500.0,0.00013698,2]
[422672097,1779231041000,-500.0,0.00013698,2]
[422672101,1779231041000,-500.0,0.00013698,2]
[422672102,1779231041000,-500.0,0.00013698,2]
[422672104,1779231041000,-588.50661964,0.00013698,2]
[422672105,1779231041000,-500.0,0.00013698,2]
[422672106,1779231041000,-500.0,0.00013698,2]
[422672108,1779231041000,-500.0,0.00013698,2]
[422672107,1779231041000,-500.0,0.00013698,2]
[422672103,1779231041000,-500.0,0.00013698,2]
[422672109,1779231041000,-500.0,0.00013698,2]
[422672112,1779231041000,-500.0,0.00013698,2]
[422672111,1779231041000,-500.0,0.00013698,2]
[422672110,1779231041000,-500.0,0.00013698,2]
[422672100,1779231041000,-500.0,0.00013698,2]
[422672114,1779231041000,-500.0,0.00013698,2]
[422672113,1779231041000,-500.0,0.00013698,2]
[422672126,1779231041000,-150.0090512,0.00013698,2]
[422672127,1779231041000,-150.0090512,0.00013698,2]
[422672124,1779231041000,-150.0090512,0.00013698,2]
[422672123,1779231041000,-500.0,0.00013698,2]
[422672120,1779231041000,-500.0,0.00013698,2]
[422672122,1779231041000,-500.0,0.00013698,2]
[422672119,1779231041000,-500.0,0.00013698,2]
[422672116,1779231041000,-500.0,0.00013698,2]
[422672118,1779231041000,-500.0,0.00013698,2]
[422672117,1779231041000,-500.0,0.00013698,2]
[422672115,1779231041000,-500.0,0.00013698,2]
[422672121,1779231041000,-500.0,0.00013698,2]
[422672125,1779231041000,-150.0090512,0.00013698,2]
[422672204,1779231042000,-150.0,0.00014295,2]
[422672203,1779231042000,-150.0,0.00014272,2]
[422672207,1779231042000,-150.0,0.00014318,2]
[422672205,1779231042000,-150.0,0.00014295,2]
[422672206,1779231042000,-150.0,0.00014305,2]
[422672196,1779231042000,-150.0,0.00014237,2]
[422672201,1779231042000,-150.0,0.00014249,2]
[422672200,1779231042000,-150.0,0.00014237,2]
[422672198,1779231042000,-150.0,0.00014237,2]
[422672197,1779231042000,-150.0,0.00014237,2]
[422672208,1779231042000,-150.0,0.00014331,2]
[422672199,1779231042000,-150.0,0.00014237,2]
[422672202,1779231042000,-15215.14120164,0.00014265,2]
[422672209,1779231042000,-150.0,0.00014341,2]
[422672216,1779231042000,-5213.56,0.00014355,2]
[422672213,1779231042000,-502.56,0.00014355,2]
[422672212,1779231042000,-502.56,0.00014355,2]
[422672215,1779231042000,-502.63,0.00014355,2]
[422672210,1779231042000,-150.0,0.00014352,2]
[422672214,1779231042000,-502.56,0.00014355,2]
[422672219,1779231042000,-5213.56,0.00014355,2]
[422672218,1779231042000,-5213.56,0.00014355,2]
[422672220,1779231042000,-5213.6646713,0.00014355,2]
[422672217,1779231042000,-5213.56,0.00014355,2]
[422672221,1779231042000,-525.7,0.00014355,2]
[422672222,1779231042000,-525.7,0.00014355,2]
[422672225,1779231042000,-525.74572099,0.00014355,2]
[422672195,1779231042000,-150.0,0.00014225,2]
[422672211,1779231042000,-502.56,0.00014355,2]
[422672190,1779231042000,-50503.48493949,0.0001416,2]
[422672163,1779231042000,-150.0,0.00013903,2]
[422672192,1779231042000,-150.0,0.00014179,2]
[422672223,1779231042000,-525.7,0.00014355,2]
[422672162,1779231042000,-150.0,0.00013896,2]
[422672164,1779231042000,-150.0,0.00013926,2]
[422672168,1779231042000,-150.0,0.00013972,2]
[422672167,1779231042000,-150.0,0.00013956,2]
[422672166,1779231042000,-150.0,0.00013949,2]
[422672165,1779231042000,-150.0,0.00013949,2]
[422672169,1779231042000,-37093.93474373,0.0001399,2]
[422672170,1779231042000,-150.0,0.00013995,2]
[422672174,1779231042000,-150.0,0.00014041,2]
[422672172,1779231042000,-150.0,0.00014018,2]
[422672171,1779231042000,-150.0,0.00014006,2]
[422672173,1779231042000,-150.0,0.00014033,2]
[422672175,1779231042000,-150.0,0.0001405,2]
[422672194,1779231042000,-150.0,0.00014202,2]
[422672176,1779231042000,-150.0,0.0001405,2]
[422672179,1779231042000,-150.0,0.00014064,2]
[422672178,1779231042000,-150.0,0.00014064,2]
[422672180,1779231042000,-150.0,0.00014087,2]
[422672181,1779231042000,-150.0,0.00014087,2]
[422672182,1779231042000,-150.0,0.0001411,2]
[422672183,1779231042000,-500.0,0.00014117,2]
[422672187,1779231042000,-150.0,0.00014156,2]
[422672185,1779231042000,-150.0,0.00014133,2]
[422672188,1779231042000,-1033.0771273,0.00014159,2]
[422672186,1779231042000,-150.0,0.00014143,2]
[422672184,1779231042000,-150.0,0.00014122,2]
[422672189,1779231042000,-23105.065839,0.0001416,2]
[422672191,1779231042000,-150.0,0.00014169,2]
[422672193,1779231042000,-150.0,0.00014179,2]
[422672177,1779231042000,-150.0,0.0001405,2]
[422672226,1779231042000,-150.0,0.00014364,2]
[422672235,1779231042000,-150.0,0.00014424,2]
[422672227,1779231042000,-161.52,0.00014367,2]
[422672262,1779231042000,-151.0,0.00014623,2]
[422672263,1779231042000,-151.0,0.00014623,2]
[422672264,1779231042000,-151.0,0.00014623,2]
[422672267,1779231042000,-7845.91671946,0.00014623,2]
[422672265,1779231042000,-151.0,0.00014623,2]
[422672268,1779231042000,-150.0,0.0001464,2]
[422672270,1779231042000,-150.0,0.0001464,2]
[422672266,1779231042000,-151.0,0.00014623,2]
[422672274,1779231042000,-468.33,0.00014668,2]
[422672271,1779231042000,-150.0,0.00014664,2]
[422672277,1779231042000,-150.0,0.00014698,2]
[422672276,1779231042000,-150.0,0.00014687,2]
[422672275,1779231042000,-150.0,0.00014687,2]
[422672272,1779231042000,-500.0,0.00014665,2]
[422672280,1779231042000,-787.88301865,0.00014713,2]
[422672278,1779231042000,-150.0,0.00014705,2]
[422672279,1779231042000,-150.0,0.0001471,2]
[422672282,1779231042000,-500.0,0.00014722,2]
[422672281,1779231042000,-150.0,0.00014714,2]
[422672285,1779231042000,-500.0,0.00014722,2]
[422672283,1779231042000,-500.0,0.00014722,2]
[422672224,1779231042000,-525.7,0.00014355,2]
[422672284,1779231042000,-500.0,0.00014722,2]
[422672287,1779231042000,-500.0,0.00014722,2]
[422672288,1779231042000,-500.0,0.00014722,2]
[422672289,1779231042000,-500.0,0.00014722,2]
[422672291,1779231042000,-500.0,0.00014722,2]
[422672292,1779231042000,-500.0,0.00014722,2]
[422672290,1779231042000,-500.0,0.00014722,2]
[422672261,1779231042000,-151.0,0.00014623,2]
[422672259,1779231042000,-50503.48493949,0.00014623,2]
[422672286,1779231042000,-500.0,0.00014722,2]
[422672258,1779231042000,-150.0,0.00014617,2]
[422672260,1779231042000,-23105.065839,0.00014623,2]
[422672229,1779231042000,-2000.0,0.00014371,2]
[422672228,1779231042000,-455.85,0.0001437,2]
[422672230,1779231042000,-150.0,0.00014387,2]
[422672233,1779231042000,-150.0,0.0001441,2]
[422672232,1779231042000,-500.0,0.00014391,2]
[422672234,1779231042000,-150.0,0.0001441,2]
[422672238,1779231042000,-150.0,0.00014433,2]
[422672236,1779231042000,-150.0,0.00014424,2]
[422672237,1779231042000,-150.0,0.00014424,2]
[422672240,1779231042000,-150.0,0.00014456,2]
[422672239,1779231042000,-150.0,0.00014441,2]
[422672242,1779231042000,-166.66,0.00014461,2]
[422672241,1779231042000,-350.0,0.00014459,2]
[422672231,1779231042000,-150.0,0.00014387,2]
[422672246,1779231042000,-150.0,0.00014518,2]
[422672257,1779231042000,-150.0,0.00014612,2]
[422672243,1779231042000,-150.0,0.00014468,2]
[422672256,1779231042000,-150.0,0.00014612,2]
[422672251,1779231042000,-150.0,0.00014578,2]
[422672253,1779231042000,-150.0,0.00014594,2]
[422672252,1779231042000,-150.0,0.00014583,2]
[422672255,1779231042000,-150.0,0.00014612,2]
[422672254,1779231042000,-150.0,0.00014612,2]
[422672249,1779231042000,-150.0,0.00014548,2]
[422672245,1779231042000,-150.0,0.00014502,2]
[422672248,1779231042000,-150.0,0.00014525,2]
[422672247,1779231042000,-150.0,0.00014525,2]
[422672250,1779231042000,-150.0,0.00014571,2]
[422672244,1779231042000,-150.0,0.00014479,2]
[422672331,1779231043000,-7845.91671944,0.00014762,2]
[422672329,1779231043000,-150.0,0.00014756,2]
[422672328,1779231043000,-150.0,0.00014733,2]
[422672327,1779231043000,-151.0,0.00014723,2]
[422672330,1779231043000,-150.0,0.00014756,2]
[422672325,1779231043000,-151.0,0.00014723,2]
[422672332,1779231043000,-150.0,0.00014779,2]
[422672324,1779231043000,-151.0,0.00014723,2]
[422672326,1779231043000,-151.0,0.00014723,2]
[422672334,1779231043000,-150.0,0.00014799,2]
[422672339,1779231043000,-200.0,0.00014846,2]
[422672335,1779231043000,-150.0,0.00014799,2]
[422672333,1779231043000,-150.0,0.00014799,2]
[422672340,1779231043000,-150.0,0.00014848,2]
[422672338,1779231043000,-150.0,0.00014825,2]
[422672343,1779231043000,-1000.0,0.0001485,2]
[422672293,1779231043000,-500.0,0.00014722,2]
[422672341,1779231043000,-51055.36084201,0.0001485,2]
[422672342,1779231043000,-1000.0,0.0001485,2]
[422672322,1779231043000,-151.0,0.00014723,2]
[422672336,1779231043000,-150.0,0.00014802,2]
[422672321,1779231043000,-151.0,0.00014723,2]
[422672307,1779231043000,-151.0,0.00014723,2]
[422672323,1779231043000,-151.0,0.00014723,2]
[422672294,1779231043000,-500.0,0.00014722,2]
[422672299,1779231043000,-500.0,0.00014722,2]
[422672298,1779231043000,-500.0,0.00014722,2]
[422672296,1779231043000,-500.0,0.00014722,2]
[422672301,1779231043000,-263380.7188643,0.00014723,2]
[422672300,1779231043000,-414.8124978,0.00014722,2]
[422672302,1779231043000,-3570.9472322,0.00014723,2]
[422672309,1779231043000,-375.304829,0.00014723,2]
[422672308,1779231043000,-151.0,0.00014723,2]
[422672306,1779231043000,-156.395135,0.00014723,2]
[422672303,1779231043000,-7508.5144403,0.00014723,2]
[422672305,1779231043000,-151.0,0.00014723,2]
[422672304,1779231043000,-773631.2141691,0.00014723,2]
[422672310,1779231043000,-375.304829,0.00014723,2]
[422672313,1779231043000,-375.304829,0.00014723,2]
[422672314,1779231043000,-375.304829,0.00014723,2]
[422672317,1779231043000,-566.539487,0.00014723,2]
[422672315,1779231043000,-151.0,0.00014723,2]
[422672316,1779231043000,-566.539487,0.00014723,2]
[422672318,1779231043000,-566.539487,0.00014723,2]
[422672320,1779231043000,-151.0,0.00014723,2]
[422672319,1779231043000,-566.539487,0.00014723,2]
[422672344,1779231043000,-150.0,0.0001485,2]
[422672337,1779231043000,-150.0,0.00014813,2]
[422672346,1779231043000,-150.0,0.00014871,2]
[422672373,1779231043000,-150.0,0.00014986,2]
[422672377,1779231043000,-150.0,0.00014986,2]
[422672376,1779231043000,-150.0,0.00014986,2]
[422672375,1779231043000,-150.0,0.00014986,2]
[422672374,1779231043000,-150.0,0.00014986,2]
[422672378,1779231043000,-150.0,0.00014986,2]
[422672380,1779231043000,-150.0,0.00014986,2]
[422672379,1779231043000,-150.0,0.00014986,2]
[422672384,1779231043000,-151.0,0.00014997,2]
[422672381,1779231043000,-278.56667928,0.00014986,2]
[422672383,1779231043000,-1252.0,0.00014994,2]
[422672385,1779231043000,-300.0,0.00014999,2]
[422672382,1779231043000,-787.88301865,0.0001499,2]
[422672386,1779231043000,-300.0,0.00014999,2]
[422672388,1779231043000,-300.0,0.00014999,2]
[422672387,1779231043000,-666.0,0.00014999,2]
[422672389,1779231043000,-300.0,0.00014999,2]
[422672390,1779231043000,-666.0,0.00014999,2]
[422672391,1779231043000,-3079200.697384,0.00015,2]
[422672393,1779231043000,-857.70184511,0.00015,2]
[422672345,1779231043000,-1000.0,0.0001486,2]
[422672368,1779231043000,-2113.59,0.0001494,2]
[422672370,1779231043000,-150.0,0.00014963,2]
[422672350,1779231043000,-150.0,0.00014894,2]
[422672372,1779231043000,-154.0,0.00014975,2]
[422672369,1779231043000,-150.0,0.0001494,2]
[422672347,1779231043000,-150.0,0.00014871,2]
[422672351,1779231043000,-1033.0771273,0.000149,2]
[422672349,1779231043000,-150.0,0.00014893,2]
[422672352,1779231043000,-5327.0,0.000149,5]
[422672354,1779231043000,-4259.0,0.000149,5]
[422672355,1779231043000,-151.0,0.000149,2]
[422672356,1779231043000,-151.0,0.000149,2]
[422672358,1779231043000,-151.0,0.000149,2]
[422672357,1779231043000,-151.0,0.000149,2]
[422672353,1779231043000,-2235.9791356,0.000149,2]
[422672361,1779231043000,-151.0,0.000149,2]
[422672371,1779231043000,-154.0,0.00014975,2]
[422672359,1779231043000,-151.0,0.000149,2]
[422672367,1779231043000,-500.0,0.00014939,2]
[422672365,1779231043000,-150.0,0.00014929,2]
[422672366,1779231043000,-166.66,0.00014938,2]
[422672364,1779231043000,-150.0,0.00014924,2]
[422672363,1779231043000,-150.0,0.00014917,2]
[422672362,1779231043000,-15215.14120164,0.000149,2]
[422672360,1779231043000,-822.37527009,0.000149,2]
[422672348,1779231043000,-200.0,0.00014879,2]
[422672394,1779231044000,-208.79,0.0001081,2]
[422672399,1779231044000,-535.94538832,0.00015,2]
[422672398,1779231044000,-480.53080747,0.00015,2]
[422672397,1779231044000,-2671.378935,0.00015,2]
[422672395,1779231044000,-151.0,0.00014723,2]
[422672396,1779231044000,-9199.45337509,0.00015,2]
[422672402,1779231046000,-638.3351,0.000149,2]
[422672401,1779231046000,-3351.2158829,0.000149,2]
[422672400,1779231046000,-269.012836,0.00014723,2]
[422672407,1779231106000,500.0,9.92e-05,2]
[422672409,1779231426000,152.0,9.626e-05,2]
[422672410,1779231448000,152.0,9.625e-05,2]
[422672412,1779231701000,190.7,6.592e-05,2]
[422672414,1779232141000,1000.0,0.00030135,120]
[422672441,1779232232000,-1833.51726259,0.00012438,2]
[422672431,1779232232000,-13089.37469903,0.00012437,2]
[422672437,1779232232000,-5891.65125703,0.00012438,2]
[422672435,1779232232000,-1200.0,0.00012438,2]
[422672438,1779232232000,-1756.29748155,0.00012438,2]
[422672436,1779232232000,-2352.04126142,0.00012438,2]
[422672430,1779232232000,-150.99,0.00012437,2]
[422672432,1779232232000,-3321.21530097,0.00012437,2]
[422672439,1779232232000,-2554.80674225,0.00012438,2]
[422672434,1779232232000,-299.99,0.00012437,2]
[422672433,1779232232000,-999.99,0.00012437,2]
[422672426,1779232232000,-10207.41641463,0.00012137,2]
[422672425,1779232232000,-495.37905734,0.00012137,2]
[422672424,1779232232000,-1205.29452803,0.00012137,2]
[422672421,1779232232000,-874.01682533,0.000119,2]
[422672427,1779232232000,-150.729223,0.00012318,2]
[422672419,1779232232000,-248.96363006,0.00011815,2]
[422672420,1779232232000,-5903.61894967,0.000119,2]
[422672422,1779232232000,-1200.0,0.00011914,2]
[422672423,1779232232000,-285.25811236,0.00011915,2]
[422672418,1779232232000,-250.0,0.00011649,2]
[422672417,1779232232000,-645.38551449,0.000114,2]
[422672429,1779232232000,-1000.0,0.00012437,2]
[422672440,1779232232000,-1049.61499594,0.00012438,2]
[422672428,1779232232000,-161.19452201,0.0001238,2]
[422672443,1779232232000,-219.16602058,0.00012438,2]
[422672476,1779232232000,-250.0,0.0001254,2]
[422672442,1779232232000,-1772.24099922,0.00012438,2]
[422672473,1779232232000,-354.35040988,0.00012476,2]
[422672479,1779232232000,-150.0,0.00012927,2]
[422672474,1779232232000,-3932.01843201,0.00012476,2]
[422672475,1779232232000,-151.95,0.00012534,2]
[422672472,1779232232000,-1564.62421589,0.00012476,2]
[422672456,1779232232000,-454.02947525,0.00012476,2]
[422672452,1779232232000,-1898.12028,0.00012476,2]
[422672458,1779232232000,-749.6440699,0.00012476,2]
[422672462,1779232232000,-1802.00160958,0.00012476,2]
[422672460,1779232232000,-5201.8187184,0.00012476,2]
[422672470,1779232232000,-503.63379097,0.00012476,2]
[422672467,1779232232000,-473.84530714,0.00012476,2]
[422672465,1779232232000,-1369.51623453,0.00012476,2]
[422672453,1779232232000,-3642.84594244,0.00012476,2]
[422672450,1779232232000,-1611.92720585,0.00012476,2]
[422672451,1779232232000,-3923.57151401,0.00012476,2]
[422672445,1779232232000,-705.48,0.00012438,2]
[422672444,1779232232000,-2314.10397942,0.00012438,2]
[422672449,1779232232000,-1315.16279415,0.00012476,2]
[422672446,1779232232000,-1619.81031999,0.00012439,2]
[422672448,1779232232000,-160.04,0.00012469,2]
[422672447,1779232232000,-380.18968001,0.00012439,2]
[422672558,1779232233000,-500.0,0.00013389,2]
[422672556,1779232233000,-500.0,0.00013389,2]
[422672553,1779232233000,-500.0,0.00013389,2]
[422672555,1779232233000,-157.63251832,0.00013389,2]
[422672550,1779232233000,-500.0,0.00013389,2]
[422672552,1779232233000,-500.0,0.00013389,2]
[422672549,1779232233000,-640.37436832,0.00013389,2]
[422672551,1779232233000,-493.0,0.00013389,2]
[422672548,1779232233000,-493.0,0.00013389,2]
[422672545,1779232233000,-493.0,0.00013389,2]
[422672568,1779232233000,-500.0,0.00013389,2]
[422672554,1779232233000,-335.36748168,0.00013389,2]
[422672557,1779232233000,-493.0,0.00013389,2]
[422672571,1779232233000,-493.0,0.00013389,2]
[422672559,1779232233000,-493.0,0.00013389,2]
[422672566,1779232233000,-309.03960432,0.00013389,2]
[422672565,1779232233000,-493.0,0.00013389,2]
[422672562,1779232233000,-500.0,0.00013389,2]
[422672561,1779232233000,-493.0,0.00013389,2]
[422672564,1779232233000,-500.0,0.00013389,2]
[422672563,1779232233000,-493.0,0.00013389,2]
[422672567,1779232233000,-592.0,0.00013389,2]
[422672569,1779232233000,-500.0,0.00013389,2]
[422672547,1779232233000,-500.0,0.00013389,2]